[Event "Sardinia World Festival-A 2024"]
[Site "Orosei"]
[Date "2024.04.30"]
[Round "5.15"]
[White "Zhalmakhanov, Ramazan"]
[Black "Vergara Anton, Diego"]
[Result "1-0"]
[ECO "C11"]
[WhiteElo "2490"]
[BlackElo "2387"]
[Annotator "TA"]
[PlyCount "67"]
[EventDate "2024.04.26"]
[EventType "swiss"]
[EventCountry "ITA"]
[SourceTitle "playchess.com"]
[Source "ChessBase"]
[SourceQuality "1"]
[TimeControl "40/5400+30:1800+30"]

{[%evp 16,67,16,19,39,23,25,40,81,75,95,97,98,51,117,83,122,117,119,108,117,117,108,39,100,95,128,120,102,80,99,102,139,131,225,233,328,314,332,347,333,333,866,877,2115,2081,2110,1912,29988,29989,29989,29990,29989,1317]} 1. e4 {[%emt 0:00:09]} e6 {[%emt 0:00:23]} 2. d4 {[%emt 0:00:10]} d5 {[%emt 0:00:06]} 3. Nc3 {[%emt 0:00:19]} Nf6 {[%emt 0:00:10]} 4. e5 {[%emt 0:00:47]} Nfd7 {[%emt 0:00:11]} 5. f4 {[%emt 0:00:09]} c5 {[%emt 0:00:10]} 6. Nf3 {[%emt 0:00:07]} Qb6 {[%emt 0:01:06]} 7. Ne2 {[%emt 0:06:28]} cxd4 {[%emt 0:01:50]} 8. Nexd4 {[%emt 0:00:35]} Nc6 {[%emt 0:01:55]} 9. c3 {[%emt 0:07:00]} Bc5 {[%emt 0:01:07]} 10. Be2 {[%emt 0:12:51]} O-O {[%emt 0:04:21]} 11. O-O {[%emt 0:01:43]} f6 {[%emt 0:04:38][%cal Rf6e5] White is slightly better.} 12. Kh1 {[%emt 0:05:09]} Re8 {[%emt 0:05:14][%cal Rf6e5]} 13. Bd3 {[%emt 0:06:16]} g6 {[%emt 0:10:03]} 14. Qa4 {[%emt 0:15:05]} (14. Qc2 $16 {[%cal Od3g6] Strongly threatening Bxg6!} f5 15. Be3) 14... Bf8 {[%emt 0:07:04]} (14... f5 $1 $14) 15. Qc2 {[%emt 0:09:01][%cal Od3g6] And now Bxg6! would win.} Bg7 {[%emt 0:02:46][%cal Rf6e5] [#]} 16. Be3 $1 {[%emt 0:02:36]} Qd8 {[%emt 0:03:10]} (16... fxe5 $2 17. fxe5 (17. Nf5 d4 $14) 17... Rf8 18. Nf5 $18 (18. Nxe6 Qxe3 19. Rae1 Qh6 $16)) 17. exf6 {[%emt 0:02:16]} Nxf6 {[%emt 0:01:09]} 18. Rae1 {[%emt 0:00:22]} Bd7 {[%emt 0:02:09]} 19. Nb5 {[%emt 0:00:29]} ({Better is} 19. Nxc6 $16 Bxc6 20. Bd4) 19... b6 {[%emt 0:12:18]} ({Black should play} 19... e5 $14 20. fxe5 Nxe5) 20. Nbd4 $16 {[%emt 0:04:51]} Na5 {[%emt 0:02:38][%cal Bc6a5,Ba5b7,Bb7c5,Bc5d3][%mdl 32]} 21. Ne5 {[%emt 0:03:14]} Nb7 {[%emt 0:02:16]} 22. Bf2 {[%emt 0:02:52] White has more active pieces.} Nc5 {[%emt 0:01:59]} 23. Bh4 $36 {[%emt 0:00:19][%mdl 2048] White is in control.} Nxd3 {[%emt 0:03:35]} 24. Qxd3 {[%emt 0:00:03]} Qc7 {[%emt 0:01:02]} (24... Qc8 $16 {is a better defense.}) 25. Nxg6 $18 {[%emt 0:08:05]} hxg6 {[%emt 0:00:26]} (25... Ne4 $142) 26. Bxf6 $1 {[%emt 0:00:02]} ({Stronger than} 26. Qxg6 Ne4 27. g4 Rec8 28. Nxe6 (28. f5 $2 Be8 $17) 28... Bxe6 29. Qxe6+ Qf7 30. Qxf7+ Kxf7 $17) 26... Bxf6 {[%emt 0:00:26]} 27. Qxg6+ {[%emt 0:00:04]} Bg7 {[%emt 0:00:06]} 28. f5 $1 {[%emt 0:00:04] [#] Intending f6 and mate.} ({Not} 28. Nxe6 Bxe6 29. Rxe6 Qf7 30. Rxe8+ Rxe8 $17) 28... exf5 {[%emt 0:03:29]} (28... Rf8) 29. Nxf5 {[%emt 0:00:23][%csl Gf5][%cal Rg6g7,Bd4f5,Bf5h6,Bh6f7,Bf7g5][%mdl 32]} Bb5 {[%emt 0:01:27]} 30. Nh6+ {[%emt 0:00:24]} Kh8 {[%emt 0:00:25]} 31. Nf7+ {[%emt 0:00:12]} Kg8 {[%emt 0:01:34]} 32. Ng5 {[%emt 0:00:46][%csl Gg5][%cal Rg6h7] White mates.} Bxf1 {[%emt 0:01:00]} 33. Rxf1 {[%emt 0:01:29][%csl Gg5][%cal Rg6h7]} Qf4 {[%emt 0:03:46]} 34. Qh7+ {[%emt 0:00:08] Weighted Error Value: White=0.10 (very precise) /Black=0.53.  Mistake:       	White=2     	Black=5      Inaccurate:     	---       	Black=5      OK:         	White=8     	Black=3      Best:        	White=1     	Black=2      Strong:       	White=3     	---} (34. Rxf4 $2 {gets mated.} Re1+) 1-0

[Event "Sardinia World Festival-A 2024"]
[Site "Orosei"]
[Date "2024.04.30"]
[Round "5.16"]
[White "Costa, Leonardo"]
[Black "Tudor, Henry Edward"]
[Result "1/2-1/2"]
[ECO "B80"]
[WhiteElo "2476"]
[BlackElo "2279"]
[Annotator "TA"]
[PlyCount "59"]
[EventDate "2024.04.26"]
[EventType "swiss"]
[EventCountry "ITA"]
[SourceTitle "playchess.com"]
[Source "ChessBase"]
[SourceQuality "1"]
[TimeControl "40/5400+30:1800+30"]

{[%evp 20,59,34,0,25,18,14,6,44,18,58,65,82,50,77,70,92,77,158,150,160,160,155,131,188,166,191,125,226,161,154,0,0,0,0,0,0,0,0,0,0,0]} 1. e4 {[%emt 0:00:02]} c5 {[%emt 0:03:30]} 2. Nf3 {[%emt 0:00:11]} d6 {[%emt 0:00:07]} 3. d4 {[%emt 0:00:05]} cxd4 {[%emt 0:00:04]} 4. Nxd4 {[%emt 0:00:05]} Nf6 {[%emt 0:00:03]} 5. Nc3 {[%emt 0:00:05]} a6 {[%emt 0:00:03]} 6. f3 {[%emt 0:00:45]} e6 {[%emt 0:00:47]} 7. Be3 {[%emt 0:00:06]} b5 {[%emt 0:05:59]} 8. a3 {[%emt 0:00:59]} Nbd7 {[%emt 0:08:48]} 9. g4 {[%emt 0:02:24]} h6 {[%emt 0:00:54]} 10. Qd2 {[%emt 0:00:43]} Bb7 {[%emt 0:03:21]} 11. O-O-O {[%emt 0:00:55]} Rc8 $1 {[%emt 0:08:40]} 12. Kb1 {[%emt 0:01:27]} Ne5 {[%emt 0:08:44][%cal Oe5f3]} 13. Qe1 {[%emt 0:16:13]} Be7 {[%emt 0:17:10]} 14. h4 {[%emt 0:05:11]} Nfd7 {[%emt 0:03:45]} 15. Rh3 {[%emt 0:07:29]} Qc7 {[%emt 0:06:20]} 16. Bc1 {[%emt 0:00:09]} Nb6 {[%emt 0:01:41]} 17. Qe2 {[%emt 0:10:29]} Nec4 {[%emt 0:05:49][%cal Oc4a3]} 18. f4 {[%emt 0:00:05]} d5 {[%emt 0:00:04]} (18... Bf6 $142) 19. Bg2 $16 {[%emt 0:16:46]} dxe4 {[%emt 0:06:52]} 20. Bxe4 {[%emt 0:00:04]} Bxe4 {[%emt 0:04:33]} 21. Qxe4 {[%emt 0:00:11]} Nd6 {[%emt 0:05:47]} (21... Na4 $16) 22. Qe5 {[%emt 0:05:34]} Nd7 {[%emt 0:01:03] [#]} 23. Nxe6 {[%emt 0:08:43]} fxe6 {[%emt 0:01:32]} (23... Nxe5 $16 24. Nxc7+ Rxc7) 24. Qxg7 {[%emt 0:00:04]} Nf7 {[%emt 0:02:08] [#]} ({Don't blunder} 24... Bf6 $2 25. Qg6+ Kf8 26. f5 $18 (26. Rhd3 Nc5 $18)) 25. Re3 $2 {[%emt 0:00:38] White has more active pieces.} ({Better is} 25. f5 $1 $16 {[%cal Rf5e6]} Qe5 26. Qg6) 25... Nf8 $11 {[%emt 0:03:03] The position is equal.} 26. g5 {[%emt 0:02:40]} hxg5 {[%emt 0:00:34]} 27. fxg5 {[%emt 0:04:21]} (27. hxg5 $5 Rh7 $8 28. Qg8 $11) 27... Rh7 $1 {[%emt 0:00:34]} 28. Qg8 {[%emt 0:00:04] Strongly threatening g6.} Rh8 {[%emt 0:00:03]} 29. Qg7 {[%emt 0:00:02] Chess con chili.} Rh7 $1 {[%emt 0:01:22]} 30. Qg8 {[%emt 0:00:11] Black defended with fortune.   Weighted Error Value: White=0.27 (precise) /Black=0.21 (precise) .  Mistake:       	White=2     	Black=3      Inaccurate:     	White=2     	Black=3      OK:         	White=6     	Black=5      Best:        	---       	Black=1      Strong:       	---       	Black=2} 1/2-1/2

[Event "Sardinia World Festival-A 2024"]
[Site "Orosei"]
[Date "2024.04.30"]
[Round "5.17"]
[White "Carlo, Emanuele"]
[Black "Sjugirov, Sanan"]
[Result "0-1"]
[ECO "B67"]
[WhiteElo "2363"]
[BlackElo "2689"]
[Annotator "TA"]
[PlyCount "78"]
[EventDate "2024.04.26"]
[EventType "swiss"]
[EventCountry "ITA"]
[SourceTitle "playchess.com"]
[Source "ChessBase"]
[SourceQuality "1"]
[TimeControl "40/5400+30:1800+30"]

{[%evp 18,78,35,16,13,15,4,0,12,18,16,0,0,-16,0,-11,0,-34,-16,-47,-52,-72,-53,-60,-68,-36,-43,-39,-57,-46,0,-39,0,-93,-95,-96,-98,-91,-97,-201,-151,-181,-177,-240,-248,-299,-154,-375,-404,-925,-885,-848,-856,-801,-823,-1048,-1033,-970,-937,-1007,-947,-1046,-1043]} 1. e4 {[%emt 0:00:02]} c5 {[%emt 0:00:12]} 2. Nf3 {[%emt 0:00:07]} Nc6 {[%emt 0:00:20]} 3. Nc3 {[%emt 0:00:43]} d6 {[%emt 0:00:34]} 4. d4 {[%emt 0:01:11]} cxd4 {[%emt 0:00:05]} 5. Nxd4 {[%emt 0:00:04]} Nf6 {[%emt 0:00:12]} 6. Bg5 {[%emt 0:00:46]} e6 {[%emt 0:00:15]} 7. Qd2 {[%emt 0:00:38]} a6 {[%emt 0:00:27]} 8. O-O-O {[%emt 0:00:14]} Bd7 {[%emt 0:00:08]} 9. f3 {[%emt 0:01:14]} Be7 {[%emt 0:01:31]} 10. g4 {[%emt 0:03:55]} h5 {[%emt 0:01:17]} 11. gxh5 {[%emt 0:00:48]} Nxh5 {[%emt 0:00:18]} 12. Be3 {[%emt 0:05:23]} Nf6 {[%emt 0:11:37] The position is equal.} 13. Rg1 {[%emt 0:02:51]} g6 {[%emt 0:00:47]} 14. Nxc6 {[%emt 0:17:00]} (14. Bg5 $5) 14... Bxc6 {[%emt 0:01:06]} 15. Bc4 {[%emt 0:01:11]} Qc7 {[%emt 0:13:39]} 16. Bb3 {[%emt 0:01:36]} O-O-O {[%emt 0:00:52]} 17. Qf2 {[%emt 0:02:08]} Nd7 {[%emt 0:01:37] Dodges Bb6} (17... d5 {feels hotter.} 18. Bb6 Qf4+ 19. Kb1 dxe4 20. Bxd8 e3) 18. f4 {[%emt 0:14:15]} Bf6 {[%emt 0:06:32] ...Bxc3 would now be deadly.} 19. Bd4 {[%emt 0:06:55]} Rh5 {[%emt 0:08:43]} 20. Rd2 {[%emt 0:08:07]} Rdh8 {[%emt 0:07:15]} 21. Bxf6 {[%emt 0:06:06]} Nxf6 {[%emt 0:00:09]} 22. Qd4 {[%emt 0:00:12][%csl LRd6,LRf6]} Qe7 {[%emt 0:00:53]} 23. Qb4 {[%emt 0:04:31][%cal Oe4e5]} Qc7 {[%emt 0:06:01]} (23... a5 $15 24. Qd4 Rxh2) 24. Rgd1 {[%emt 0:01:39]} Ne8 {[%emt 0:01:41]} 25. a4 {[%emt 0:06:00]} (25. e5 $1 $11 {remains equal.} a5 (25... Rxh2 $2 26. exd6 Qd7 27. Rxh2 $18) (25... dxe5 26. Ba4 $11) 26. Qa3 dxe5 27. Rd8+ Qxd8 28. Rxd8+ Kxd8 29. Qxa5+ Nc7 30. fxe5) 25... Qa5 $17 {[%emt 0:06:01]} 26. Qd4 {[%emt 0:05:58]} Rxh2 {[%emt 0:03:33]} 27. Rxh2 {[%emt 0:01:41]} Rxh2 {[%emt 0:00:05]} 28. Qa7 {[%emt 0:01:02]} (28. Bc4 $17) 28... Kc7 {[%emt 0:04:44]} 29. Kb1 {[%emt 0:03:23]} Qb6 {[%emt 0:04:20]} 30. Qa8 {[%emt 0:00:09]} (30. Qxb6+ {was worth a try.} Kxb6 31. f5) 30... Qf2 $19 {[%emt 0:01:28]} 31. e5 {[%emt 0:03:06]} d5 {[%emt 0:09:02]} (31... Qxf4 $19 32. Nb5+ axb5 33. axb5 Qf3 (33... Bxb5 34. Qa5+ Kc6 35. Qd8 $17) 34. Qa5+ b6 35. Qa7+ Bb7) 32. Ne4 $2 {[%emt 0:01:16] Now White is beyond hope.} (32. a5 $17) 32... Qf3 {[%emt 0:01:01]} (32... dxe4 33. Qd8#) (32... Qxf4 33. Nc5 Qxe5 34. Qa7 $19) 33. Rd4 {[%emt 0:01:14]} (33. Nc3 $142) 33... Rh1+ {[%emt 0:00:32] Black is clearly winning.} ({Inferior is} 33... dxe4 34. Qd8#) 34. Ka2 {[%emt 0:00:09] [#]} Qf1 $1 {[%emt 0:00:10][%csl Gh1][%cal Rf1a1]} (34... dxe4 35. Qd8#) 35. Ka3 {[%emt 0:00:16]} Qa1+ {[%emt 0:00:28]} ({Worse is} 35... dxe4 36. Qd8#) 36. Ba2 {[%emt 0:01:31]} Rb1 {[%emt 0:00:42][%csl Gb1][%cal Ra1b2]} ({Stronger than} 36... dxe4 37. Qd8#) 37. Rb4 {[%emt 0:00:09]} dxe4 {[%emt 0:00:35]} 38. Qa7 {[%emt 0:00:39]} Rd1 {[%emt 0:00:57] White must now prevent ...Bd5.} 39. Qb6+ {[%emt 0:00:29]} Kc8 {[%emt 0:00:11] Weighted Error Value: White=0.61/Black=0.19 (very precise) .  Loses game:     	White=1     	---        Mistake:       	White=4     	Black=2      Inaccurate:     	White=3     	Black=1      OK:         	White=5     	Black=8      Best:        	White=1     	Black=1} 0-1

[Event "Sardinia World Festival-A 2024"]
[Site "Orosei"]
[Date "2024.04.30"]
[Round "5.18"]
[White "Derakhshani, Borna"]
[Black "Rozen, Eytan"]
[Result "0-1"]
[ECO "B92"]
[WhiteElo "2355"]
[BlackElo "2499"]
[Annotator "TA"]
[PlyCount "80"]
[EventDate "2024.04.26"]
[EventType "swiss"]
[EventCountry "ITA"]
[SourceTitle "playchess.com"]
[Source "ChessBase"]
[SourceQuality "1"]
[TimeControl "40/5400+30:1800+30"]

{[%evp 24,80,0,0,10,2,31,32,51,24,35,42,74,37,113,12,0,0,0,0,-14,0,0,-14,-22,-40,-47,-64,-63,-68,-64,-85,-64,-108,-89,-105,-68,-53,-55,-46,-15,-126,-106,-97,-112,-138,-50,-162,-173,-341,-345,-456,-455,-437,-142,-554,-533,-562,-487]} 1. e4 {[%emt 0:03:05]} c5 {[%emt 0:00:07]} 2. Nf3 {[%emt 0:00:05]} d6 {[%emt 0:00:06]} 3. d4 {[%emt 0:00:04]} cxd4 {[%emt 0:00:04]} 4. Nxd4 {[%emt 0:00:03]} Nf6 {[%emt 0:00:08]} 5. Nc3 {[%emt 0:00:06]} a6 {[%emt 0:00:05]} 6. Be2 {[%emt 0:00:15]} e5 {[%emt 0:00:07]} 7. Nb3 {[%emt 0:00:03]} Be7 {[%emt 0:00:52]} 8. Be3 {[%emt 0:00:11]} Be6 {[%emt 0:00:22]} 9. Nd5 {[%emt 0:00:04]} Nbd7 {[%emt 0:00:12]} 10. Qd3 {[%emt 0:00:05]} O-O {[%emt 0:00:58]} 11. O-O {[%emt 0:00:04]} Bxd5 {[%emt 0:01:04]} 12. exd5 {[%emt 0:00:06]} Rc8 {[%emt 0:00:26]} 13. c4 {[%emt 0:00:05]} a5 {[%emt 0:00:14]} 14. Rae1 {[%emt 0:03:12]} a4 {[%emt 0:03:32]} 15. Nd2 {[%emt 0:00:09]} Qa5 {[%emt 0:01:53] White is slightly better.} 16. Kh1 {[%emt 1:30:53]} Nc5 {[%emt 0:09:58]} 17. Qa3 {[%emt 0:00:00] [#] aiming for b4.} b6 {[%emt 1:18:52]} 18. f4 {[%emt 0:00:00]} e4 {[%emt 0:00:00]} (18... exf4 $14 19. Bxf4 Ra8) 19. b4 {[%emt 0:00:00]} ({White should play} 19. Rd1 $16) 19... axb3 $11 {[%emt 0:00:00]} 20. Qxa5 {[%emt 0:00:00]} bxa5 {[%emt 0:00:00]} 21. Nxb3 {[%emt 0:00:00]} Nxb3 {[%emt 0:00:00]} 22. axb3 {[%emt 0:00:00]} Rb8 {[%emt 0:00:00]} 23. Rb1 {[%emt 0:00:00]} Nd7 {[%emt 0:00:00]} 24. f5 {[%emt 0:00:00]} Bf6 {[%emt 0:00:00]} 25. Rfe1 {[%emt 0:00:00]} Rb7 {[%emt 0:00:00]} 26. Bf4 {[%emt 0:00:00]} Rb6 {[%emt 0:00:00]} 27. Bd2 {[%emt 0:00:00]} Ra8 {[%emt 0:00:00]} 28. Rec1 {[%emt 0:00:00]} Bd4 {[%emt 0:00:00] Against Be3} 29. Bd1 {[%emt 0:00:00]} Nc5 {[%emt 0:00:00] And now ...Nd3 would win.} 30. Bc2 {[%emt 0:00:00][%cal Od2a5]} g6 {[%emt 0:00:00]} 31. g4 {[%emt 0:00:00]} Kg7 {[%emt 0:00:00]} 32. b4 {[%emt 0:00:00]} (32. Bf4 $11) 32... axb4 {[%emt 0:00:00]} 33. Bxb4 {[%emt 0:00:00]} e3 $36 {[%emt 0:00:00][%cal Ob6b4][%mdl 2048] Strongly threatening ...Rxb4! Black is in control.} 34. Kg2 {[%emt 0:00:26][%cal Ob4c3]} Rba6 {[%emt 0:00:00] Black has more active pieces.} (34... Ra2 $17 35. Kf3 Nd7) 35. Kf3 {[%emt 0:03:12]} (35. Re1 $1 $15) 35... Ra2 $19 {[%emt 0:00:00]} 36. h3 $2 {[%emt 0:05:48]} (36. Rd1) 36... Re8 {[%emt 0:00:00]} 37. Bxc5 {[%emt 0:00:23]} Bxc5 {[%emt 0:00:00]} 38. Ke2 {[%emt 0:00:39]} Re4 $2 {[%emt 0:00:00]} (38... Rea8 $19 39. Kf3 R8a3) 39. Kd3 $2 {[%emt 0:00:19][%mdl 8192]} (39. g5 $17) 39... Rd4+ {[%emt 0:00:00]} 40. Kxe3 {[%emt 0:00:41] [#]} Rxc2 $1 {[%emt 0:00:00][%mdl 512] Weighted Error Value: White=0.57/Black=0.32.  Loses game:     	White=1     	---        Missed win:     	---       	Black=1      Mistake:       	White=4     	Black=2      Inaccurate:     	White=4     	Black=4      OK:         	White=4     	Black=10     Best:        	White=1     	Black=2} 0-1

[Event "Sardinia World Festival-A 2024"]
[Site "Orosei"]
[Date "2024.04.30"]
[Round "5.19"]
[White "Assylov, Miras"]
[Black "Stoyanov, Tsvetan"]
[Result "1-0"]
[ECO "B92"]
[WhiteElo "2342"]
[BlackElo "2473"]
[Annotator "TA"]
[PlyCount "127"]
[EventDate "2024.04.26"]
[EventType "swiss"]
[EventCountry "ITA"]
[SourceTitle "playchess.com"]
[Source "ChessBase"]
[SourceQuality "1"]
[TimeControl "40/5400+30:1800+30"]

{[%evp 76,127,219,27,34,8,25,0,0,0,0,0,0,0,0,0,0,-36,0,0,0,-146,-135,-329,-304,-468,-464,-479,-354,-352,-317,-347,-419,-336,-317,-335,0,-310,0,-327,0,0,0,0,109,100,291,122,266,0,0,0,29996,261]} 1. e4 {[%emt 0:00:04]} c5 {[%emt 0:00:12]} 2. Nf3 {[%emt 0:00:08]} d6 {[%emt 0:00:23]} 3. d4 {[%emt 0:00:07]} cxd4 {[%emt 0:00:07]} 4. Nxd4 {[%emt 0:00:07]} Nf6 {[%emt 0:00:09]} 5. Nc3 {[%emt 0:00:08]} a6 {[%emt 0:00:18]} 6. Be2 {[%emt 0:00:21]} e5 {[%emt 0:00:35]} 7. Nb3 {[%emt 0:00:09]} Be7 {[%emt 0:00:33]} 8. Bg5 {[%emt 0:00:16]} O-O {[%emt 0:03:39]} 9. Bxf6 {[%emt 0:03:51]} Bxf6 {[%emt 0:00:02]} 10. Qd3 {[%emt 0:00:12]} Be6 {[%emt 0:00:58]} 11. O-O-O {[%emt 0:00:16] B92: Sicilian Najdorf: 6 Be2.} Be7 {[%emt 0:00:15]} 12. Nd5 {[%emt 0:00:20] 12.Kb1 is not played anymore.} Bxd5 {[%emt 0:02:57]} 13. Qxd5 {[%emt 0:00:02]} Ra7 $146 {[%emt 0:00:25]} ({Predecessor:} 13... Qc7 14. Qc4 Qb6 15. Rhf1 Nd7 16. Nd2 Rfc8 17. Qb3 Qc7 18. Kb1 b5 19. Bg4 Nc5 {1-0 Carlsen,M (2847)-Bjerre,J (2550) Carlsen-Challengers sim blitz 2021 (1.12)}) 14. Kb1 {[%emt 0:07:42]} b5 {[%emt 0:09:52]} 15. c3 {[%emt 0:13:02]} Nd7 {[%emt 0:03:24]} 16. Na1 {[%emt 0:10:38]} Qb6 {[%emt 0:07:40]} 17. Rhf1 {[%emt 0:01:42]} Nf6 {[%emt 0:06:49]} 18. Qd3 {[%emt 0:00:15]} b4 {[%emt 0:00:42]} 19. cxb4 {[%emt 0:04:51]} Qxb4 {[%emt 0:00:48]} 20. f3 {[%emt 0:02:05]} Qb8 {[%emt 0:04:51]} 21. Qd2 {[%emt 0:06:42]} Nd7 {[%emt 0:06:19]} 22. Bc4 {[%emt 0:15:58]} h6 {[%emt 0:03:38]} 23. Nb3 {[%emt 0:03:11]} Rb7 {[%emt 0:16:59]} 24. Bxa6 {[%emt 0:06:42]} Rb4 {[%emt 0:01:16]} 25. Qc3 {[%emt 0:01:33]} Qb6 {[%emt 0:12:35]} 26. Bc4 {[%emt 0:00:56]} Rb8 {[%emt 0:00:54]} 27. Rd2 {[%emt 0:02:28]} Qa7 {[%emt 0:04:19]} 28. Rc2 {[%emt 0:01:47]} Ra4 {[%emt 0:02:58]} 29. Nc1 {[%emt 0:02:09]} Nc5 {[%emt 0:00:11]} 30. Nd3 {[%emt 0:01:15]} Ra3 {[%emt 0:01:10]} 31. b3 {[%emt 0:05:32]} Na4 {[%emt 0:01:10]} 32. Qe1 {[%emt 0:00:34]} Nb6 {[%emt 0:05:05]} 33. Bb5 {[%emt 0:01:51]} Ra8 {[%emt 0:03:15]} 34. Nc1 {[%emt 0:01:43]} Bg5 {[%emt 0:00:21]} 35. Bc6 {[%emt 0:00:16]} Rb8 {[%emt 0:00:20]} 36. h4 {[%emt 0:00:44]} Be7 {[%emt 0:02:48]} 37. g3 {[%emt 0:00:25]} d5 {[%emt 0:00:24]} 38. exd5 {[%emt 0:01:32]} Bf6 {[%emt 0:01:09]} 39. Qe4 $2 {[%emt 0:01:46]} (39. d6 $18) 39... Nc8 $1 $11 {[%emt 0:00:00]} 40. Qd3 {[%emt 0:04:52]} Nd6 {[%emt 0:00:23]} 41. h5 {[%emt 0:11:56]} (41. Re1 $5) 41... Rb4 {[%emt 0:10:00]} 42. Re1 {[%emt 0:03:38]} Rd4 {[%emt 0:21:37]} 43. Qf1 {[%emt 0:05:14]} Rb4 {[%emt 0:00:00]} 44. Qf2 {[%emt 0:06:34]} Rd4 {[%emt 0:00:00]} 45. Qf1 {[%emt 0:01:22]} (45. Ne2 $2 Rd1+ 46. Rxd1 Qxf2 $19) 45... Qb8 {[%emt 0:00:00]} 46. Rd1 {[%emt 0:03:45]} Rxd1 {[%emt 0:00:00]} 47. Qxd1 {[%emt 0:00:02]} e4 {[%emt 0:00:00]} 48. Qe2 {[%emt 0:01:57]} (48. f4 $11 {remains equal.}) 48... Qb6 {[%emt 0:01:17]} 49. Rd2 $2 {[%emt 0:01:06]} (49. fxe4 $2 Qd4 50. e5 Bxe5 $19 (50... Qxe5 $2 51. Qxe5 Bxe5 52. Ba4 $18)) (49. Qd2 $17 {was the only defense.} exf3 50. Qf4) 49... Qb4 {[%emt 0:01:16]} 50. Kc2 {[%emt 0:01:11]} (50. f4 {was forced.}) 50... exf3 {[%emt 0:00:40]} (50... Qc3+ $2 51. Kd1 exf3 (51... Qxf3 $2 52. Qxf3 exf3 53. Rf2 $18) 52. Qd3 $19) 51. Qxf3 {[%emt 0:00:11]} Ne4 {[%emt 0:00:16]} (51... Bg5 52. Rg2 $19) 52. Re2 {[%emt 0:00:48]} Qc5+ {[%emt 0:00:04]} 53. Kd3 {[%emt 0:00:23]} Qd4+ {[%emt 0:00:26]} 54. Kc2 {[%emt 0:00:02]} Qb2+ {[%emt 0:01:08]} 55. Kd3 {[%emt 0:00:09]} Qd4+ {[%emt 0:00:47]} (55... Qxc1 56. Kxe4 Ra7 57. Qf2 Re7+ 58. Kf3 $15) (55... Nc5+ 56. Kc4 Qxc1+ 57. Kb5 $11) 56. Kc2 {[%emt 0:00:02]} Qb2+ {[%emt 0:00:32]} 57. Kd3 {[%emt 0:00:02] [#]} Nc5+ $2 {[%emt 0:00:01]} (57... Qxc1 58. Kxe4 Ra7 59. Qf2 Re7+ 60. Kf3 $17) (57... Qb1+ $1 $19 58. Ke3 Nc3 (58... Qxc1+ 59. Kxe4 Ra7 60. Qf2 $17)) 58. Kc4 $11 {[%emt 0:00:09]} Qxc1+ {[%emt 0:00:59]} 59. Kb5 {[%emt 0:01:15]} Nd7 {[%emt 0:00:31]} (59... Nxb3 60. axb3 g6 61. hxg6 (61. Qxf6 $2 Rxb3+ 62. Ka5 Qc5+ 63. Ka6 Qb6#) 61... fxg6 62. d6 $16 (62. Qxf6 $2 Rxb3+ 63. Ka6 Qa3+)) (59... Na6 $1 $11 60. Re8+ Kh7 61. Qe4+ (61. Qf5+ g6 $11) 61... g6 62. hxg6+ fxg6 63. Re7+ Kh8 (63... Bxe7 64. Qxe7+ Kg8 65. Qe8+ Kg7 66. Qe7+ Kh8 67. Qe8+ Kh7 68. Qf7+ Kh8 69. Qf6+ Kh7 70. Qe7+ Kg8 71. Qd8+ Kg7 72. Qe7+ Kh8 73. Qf6+ Kh7 74. Qf7+ Kh8 75. Qf6+ $11) 64. Re8+ Kh7 65. Re7+ Kh8 (65... Bxe7 66. Qxe7+ Kg8 67. Qe6+ Kh8 68. Qe5+ Kg8 69. Qe6+ Kh7 70. Qf7+ Kh8 71. Qf6+ Kh7 72. Qe7+ Kh8 73. Qd8+ Kh7 74. Qe7+ $11) 66. Re8+ Kg7 67. Rg8+ Kxg8 68. Qxg6+ Bg7 69. Qe6+ Kh8 70. Qc8+ (70. Qe8+ Kh7 $11) 70... Kh7 71. Qf5+ Kh8 (71... Kg8 72. Qe6+ Kh7 73. Qe4+ Kh8 74. Qe8+ Kh7 75. Qe4+ Kh8 76. Qe8+ Kh7 77. Qe4+ $11) 72. Qc8+ Kh7 73. Qf5+ Kg8 74. Qc8+ Bf8 75. Qe6+ Kg7 76. Qe5+ Kh7 77. Qf5+ Kg8 78. Qe6+ Kh8 79. Qe5+ Kh7 80. Qe4+ Kg8 81. Qe6+) 60. Bxd7 $16 {[%emt 0:02:32]} Qc7 $2 {[%emt 0:00:10]} (60... Ra8 $16 61. Re8+ Rxe8 62. Bxe8 Qa3) 61. Re8+ $18 {[%emt 0:00:00]} Kh7 {[%emt 0:00:01] [#]} 62. Qe4+ $2 {[%emt 0:00:18]} ({Don't blunder} 62. Qf5+ $2 g6 63. hxg6+ Kg7 $19) (62. Bc6 $1 $18 {Threatening mate with Qf5+.} Qa5+ 63. Kc4 Rxa2 64. Qe4+ (64. Qf5+ g6 $17) 64... g6 65. b4 (65. hxg6+ fxg6 66. b4 Qb6 $18)) 62... g6 $11 {[%emt 0:00:01]} 63. hxg6+ {[%emt 0:00:10]} Kg7 $2 {[%emt 0:00:07][%mdl 8192]} (63... fxg6 $11 64. Re7+ Kh8 65. Re8+ Kg7 66. Re7+ Kh8 67. Re8+ Kh7 68. Re7+ Kh8) 64. Rg8+ $1 {[%emt 0:00:17]} 1-0